bitfinex/quotes_ETHUSD_20250129
["timestamp","ask_amount","ask_price","bid_price","bid_amount"]
[1738172121652,1.455439,3128.7,3127.8,0.341]
[1738172121653,3.19667,3128.3,3127.8,0.341]
[1738172121855,3.19651,3128.5,3128.0,3.19688]
[1738172122099,3.19657,3128.4,3128.1,0.55]
[1738172122300,3.19601,3128.9,3128.0,0.55]
[1738172122504,3.19639,3128.6,3128.2,35.0]
[1738172122656,3.19643,3128.5,3128.2,35.0]
[1738172123095,3.19639,3128.6,3128.2,35.0]
[1738172123270,3.19613,3128.8,3128.3,0.55]
[1738172123708,3.19648,3128.5,3128.3,0.55]
[1738172123886,3.19649,3128.5,3128.3,0.2325997]
[1738172124805,3.19625,3128.7,3128.3,0.2325997]
[1738172125007,3.19625,3128.7,3128.4,0.55]
[1738172125299,3.19616,3128.8,3128.3,3.74662]
[1738172125689,3.19583,3129.1,3128.4,0.0075]
[1738172125891,3.1951,3129.8,3128.6,0.55]
[1738172126107,3.19592,3129.0,3128.5,0.8181]
[1738172126310,3.19613,3128.8,3128.5,0.8181]
[1738172126595,3.19628,3128.7,3128.5,0.8181]
[1738172126986,3.19631,3128.6,3128.5,0.8181]
[1738172127297,3.19631,3128.6,3128.4,0.23270647]
[1738172127298,3.19642,3128.5,3128.4,0.23270647]
[1738172127458,3.19631,3128.6,3128.5,0.23270647]
[1738172127902,3.19616,3128.8,3128.5,0.23270647]
[1738172128600,3.19616,3128.8,3128.5,0.78270647]
[1738172129163,3.19625,3128.7,3128.6,0.339]
[1738172129574,3.19625,3128.7,3128.2,35.7591]
[1738172129866,3.19642,3128.5,3128.3,0.889]
[1738172130276,3.19625,3128.7,3128.3,0.889]
[1738172130509,3.19625,3128.7,3128.4,35.0]
[1738172130801,3.19642,3128.5,3128.4,35.0]
[1738172130974,3.19625,3128.7,3128.4,35.0]
[1738172131178,3.19633,3128.6,3128.4,35.0]
[1738172132215,3.19642,3128.5,3128.4,35.0]
[1738172132515,3.19705,3127.9,3127.6,0.8149]
[1738172132713,3.19705,3127.9,3127.7,0.336]
[1738172132861,3.19751,3127.5,3127.2,0.8149]
[1738172133062,3.19731,3127.7,3127.3,0.336]
[1738172133368,6.39464,3127.7,3127.4,35.0]
[1738172133681,3.19744,3127.5,3127.4,35.0]
[1738172134205,3.19744,3127.5,3127.4,35.338]
[1738172134716,3.19744,3127.5,3127.4,35.339]
[1738172137290,3.19737,3127.6,3127.4,35.339]
[1738172138053,3.19785,3127.1,3127.0,2.531]
[1738172138209,3.19785,3127.1,3127.0,2.868]
[1738172138793,3.19785,3127.1,3127.0,2.531]
[1738172138989,3.19785,3127.1,3127.0,2.867]
[1738172139200,3.19785,3127.1,3127.0,2.531]
[1738172139401,3.19785,3127.1,3127.0,2.867]
[1738172139620,3.19774,3127.3,3127.0,37.866]
[1738172139820,3.19743,3127.6,3127.0,37.866]
[1738172140022,3.19756,3127.4,3127.0,37.866]
[1738172140713,3.19766,3127.3,3127.0,37.866]
[1738172140915,3.19775,3127.2,3127.0,37.866]
[1738172141554,3.19756,3127.4,3127.0,37.866]
[1738172141852,3.19765,3127.3,3127.0,37.866]
[1738172142256,3.19756,3127.4,3127.0,37.866]
[1738172142443,3.19765,3127.3,3127.0,37.866]
[1738172142756,3.19775,3127.2,3127.0,37.866]
[1738172143851,3.19756,3127.4,3127.0,37.866]
[1738172144059,3.19746,3127.5,3127.1,0.55]
[1738172144714,3.19762,3127.4,3127.1,0.55]
[1738172144915,3.19765,3127.3,3127.1,0.55]
[1738172145411,6.39526,3127.4,3127.1,0.55]
[1738172145616,3.19708,3127.9,3127.1,3.74776]
[1738172145957,1.27932,3128.2,3127.3,0.55]
[1738172146157,3.19753,3127.5,3127.2,0.8233]
[1738172146360,3.19753,3127.5,3127.0,37.866]
[1738172146559,0.64054548,3128.3,3127.1,0.882]
[1738172146560,3.19705,3127.9,3127.1,0.882]
[1738172146860,6.3944,3127.8,3127.2,0.55]
[1738172147072,3.19719,3127.8,3127.2,3.74771]
[1738172147533,3.19719,3127.8,3127.3,0.1200968]
[1738172147854,3.19719,3127.8,3127.4,0.55]
[1738172148057,3.19725,3127.7,3127.4,0.12001525]
[1738172148465,3.19725,3127.7,3127.2,0.55]
[1738172148636,3.19733,3127.6,3127.5,0.11993372]
[1738172148836,3.19743,3127.6,3127.2,0.55]
[1738172149067,3.19745,3127.5,3127.3,0.11993219]
[1738172149264,6.39497,3127.5,3127.3,0.11993219]
[1738172149430,3.19764,3127.3,3127.2,0.55]
[1738172149635,3.19727,3127.7,3127.2,4.19906942]
[1738172149874,3.19732,3127.7,3127.2,3.86773373]
[1738172150239,3.19703,3127.9,3127.2,0.67001373]
[1738172150439,3.19719,3127.8,3127.4,0.55]
[1738172150746,3.1969,3128.1,3127.7,0.823]
[1738172150944,3.19703,3127.9,3127.8,0.11956583]
[1738172151403,3.19707,3127.9,3127.3,0.823]
[1738172151607,3.19707,3127.9,3127.8,0.11956583]
[1738172151737,3.19723,3127.8,3127.4,0.55]
[1738172152259,3.1975,3127.5,3127.1,0.332]
[1738172152447,3.1975,3127.5,3127.2,0.332]
[1738172152448,3.19765,3127.3,3127.2,0.332]
[1738172153086,3.19725,3127.7,3127.3,0.55]
[1738172153381,0.7721,3128.5,3127.5,0.55]
[1738172153679,3.19723,3127.7,3127.5,0.55]
[1738172153975,3.19708,3127.9,3127.2,3.52969]
[1738172154181,3.19733,3127.7,3127.2,0.332]
[1738172154487,3.19734,3127.6,3127.3,0.55]
[1738172154691,0.7721,3128.5,3127.3,0.55]
[1738172154900,3.19717,3127.8,3127.3,0.55]
[1738172155201,3.19725,3127.7,3127.3,0.55]
[1738172155797,3.19717,3127.8,3127.3,0.55]
[1738172156116,3.19662,3128.3,3127.3,0.55]
[1738172156117,3.19724,3127.7,3127.3,0.55]
[1738172157347,0.7721,3128.5,3127.5,0.55]
[1738172157583,3.19705,3127.9,3127.5,0.55]
[1738172158571,3.19685,3128.1,3127.7,0.55]
[1738172159453,3.19685,3128.1,3127.2,0.332]
[1738172159454,3.19694,3128.0,3127.5,3.75493]
[1738172159655,3.19705,3127.9,3127.5,0.55]
[1738172159855,3.19758,3127.4,3127.1,0.7643]
[1738172160071,3.19767,3127.3,3127.2,0.331]
[1738172160268,3.1974,3127.6,3127.2,0.331]
[1738172160473,3.19723,3127.7,3127.2,0.331]
[1738172160702,3.19759,3127.4,3127.2,0.331]
[1738172160913,3.19764,3127.3,3127.2,0.331]
[1738172161305,3.19764,3127.3,3127.2,35.331]
[1738172161921,3.19764,3127.3,3127.2,35.0]
[1738172162121,3.19764,3127.3,3127.2,35.33]
[1738172162417,3.19764,3127.3,3127.2,35.44569203]
[1738172162806,3.19764,3127.3,3127.2,0.44569203]
[1738172163012,3.19759,3127.4,3126.4,3.3307]
[1738172163320,3.19759,3127.4,3125.5,0.8161]
[1738172163321,3.19877,3126.2,3125.5,0.8161]
[1738172163505,3.19877,3126.2,3125.6,3.52931]
[1738172163712,0.808,3126.6,3126.5,0.23354413]
[1738172163879,7.00636,3126.6,3126.5,4.13e-06]
[1738172164079,8.026828,3126.6,3126.5,4.13e-06]
[1738172164324,8.045828,3126.6,3126.5,4.13e-06]
[1738172164773,3.19979,3125.2,3125.1,2.35525542]
[1738172164974,3.19979,3125.2,3125.1,2.68625542]
[1738172165180,3.19979,3125.2,3124.5,0.7501]
[1738172165181,3.20004,3125.0,3124.5,0.7501]
[1738172165420,3.20004,3125.0,3124.9,35.0]
[1738172165574,3.20004,3125.0,3124.9,35.331]
[1738172167146,3.19979,3125.2,3124.9,35.331]
[1738172167331,0.827,3125.6,3124.9,35.331]
[1738172167628,3.2,3125.0,3124.9,35.331]
[1738172168220,3.2,3125.0,3124.9,35.33]
[1738172168857,3.2,3125.0,3124.9,35.0]
[1738172169119,3.2,3125.0,3124.9,35.329]
[1738172169966,4.601979,3125.0,3124.9,35.0]
[1738172170132,3.20061,3124.4,3124.3,2.532]
[1738172170470,3.20021,3124.8,3124.3,2.86]
[1738172170669,0.7766,3125.3,3124.4,35.0]
[1738172170882,0.7766,3125.3,3124.6,3.20039]
[1738172170883,3.19989,3125.2,3124.6,3.20039]
[1738172171018,3.19989,3125.2,3124.7,0.55]
[1738172171355,3.1996,3125.4,3124.8,0.11154634]
[1738172171556,3.1997,3125.3,3125.0,35.0]
[1738172171769,3.1996,3125.4,3125.1,0.55]
[1738172171916,0.2,3126.9,3125.1,0.55]
[1738172171917,3.19886,3126.2,3125.3,3.74969]
[1738172172117,3.19893,3126.1,3125.3,3.74964]
[1738172172433,3.19905,3126.0,3125.4,0.66089661]
[1738172172761,3.19938,3125.6,3125.5,0.331]
[1738172172917,0.7786,3126.5,3125.5,38.53145]
[1738172173122,3.19895,3126.1,3125.5,35.44257705]
[1738172173319,3.19915,3125.9,3125.5,35.44257705]
[1738172173894,3.19895,3126.1,3125.6,0.55]
[1738172174188,3.19812,3126.9,3126.3,3.19859]
[1738172174358,3.19826,3126.7,3126.3,0.7733]
[1738172174564,3.19836,3126.6,3126.4,0.11017474]
[1738172174861,3.19846,3126.5,3126.4,35.11017474]
[1738172175081,3.19846,3126.5,3126.4,0.44317474]
[1738172175578,3.19802,3127.0,3126.5,0.55]
[1738172175786,3.19789,3127.1,3126.5,0.55]
[1738172175787,3.19809,3126.9,3126.5,0.55]
[1738172176004,3.19772,3127.3,3126.7,0.55]
[1738172176289,3.19763,3127.4,3126.9,3.74804]
[1738172176493,3.19735,3127.6,3126.9,0.55]
[1738172176692,3.19786,3127.1,3127.0,0.10521381]
[1738172177215,3.19786,3127.1,3126.5,0.341]
[1738172177216,3.98666,3127.1,3126.5,0.341]
[1738172177415,3.19877,3126.2,3125.9,0.8111]
[1738172177623,3.517125,3127.6,3125.1,2.0]
[1738172177624,3.19866,3126.3,3126.2,0.341]
[1738172177912,3.98303,3126.4,3125.3,0.8033]
[1738172178116,3.19938,3125.6,3125.5,0.341]
[1738172179125,3.97568,3125.6,3125.5,0.341]
[1738172179775,3.19938,3125.6,3125.5,0.341]
[1738172181814,3.19938,3125.6,3125.5,35.891]
[1738172181975,3.19938,3125.6,3125.5,35.89]
[1738172186514,3.19927,3125.8,3125.6,0.55]
[1738172186892,3.19928,3125.7,3125.6,0.55]
[1738172188320,3.1989,3126.1,3125.8,0.55]
[1738172188756,3.19938,3125.6,3125.5,35.34]
[1738172189060,3.19927,3125.8,3125.6,0.55]
[1738172189433,3.199,3126.0,3125.6,0.55]
[1738172189957,3.19928,3125.7,3125.6,0.55]
[1738172190322,3.19928,3125.7,3125.6,0.884]
[1738172191518,3.19928,3125.7,3125.6,0.334]
[1738172191748,3.19917,3125.9,3125.7,0.55]
[1738172192284,3.19917,3125.9,3125.6,0.884]
[1738172192487,3.19889,3126.1,3125.8,0.1027734]
[1738172192690,3.19852,3126.5,3125.8,0.7673]
[1738172192891,0.8226,3127.4,3126.2,0.0075]
[1738172193053,3.19852,3126.5,3126.2,0.0075]
[1738172193250,3.19852,3126.5,3126.3,35.1023169]
[1738172193563,3.19866,3126.4,3126.3,35.1023169]
[1738172194757,3.19853,3126.5,3126.3,35.1023169]
[1738172194961,3.19856,3126.4,3126.3,35.1023169]
[1738172198393,3.19856,3126.4,3126.3,0.1023169]
[1738172198580,4.625057,3126.4,3126.3,0.4293169]
[1738172198894,4.625057,3126.4,3126.3,0.327]
[1738172200577,3.98536,3126.4,3126.3,0.327]
[1738172200784,3.19856,3126.4,3126.3,0.327]
[1738172201161,3.19856,3126.4,3126.3,0.42550195]
[1738172203187,3.19856,3126.4,3126.3,35.327]
[1738172203626,3.19856,3126.4,3126.3,35.42550195]
[1738172203839,4.158103,3126.4,3126.3,35.42550195]
[1738172205619,4.158103,3126.4,3126.3,0.42550195]
[1738172205793,4.158103,3126.4,3126.3,0.327]
[1738172206930,3.19938,3125.6,3125.5,35.0]
[1738172207128,3.19938,3125.6,3125.5,35.322]
[1738172207317,3.19938,3125.6,3125.5,35.97168925]
[1738172208212,6.3985,3125.8,3125.5,35.97168925]
[1738172208410,3.19923,3125.8,3125.5,35.97168925]
[1738172208811,3.19878,3126.2,3125.6,3.74936]
[1738172209022,3.19888,3126.1,3125.6,3.78135025]
[1738172209223,3.19888,3126.1,3125.7,0.09993537]
[1738172209396,3.19892,3126.1,3125.8,35.55]
[1738172209609,3.19887,3126.2,3125.8,35.55]
[1738172209808,6.39773,3126.2,3125.9,0.09972238]
[1738172210025,3.19886,3126.2,3125.9,0.09972238]
[1738172210234,3.19889,3126.1,3125.9,0.09972238]
[1738172210440,3.19889,3126.1,3126.0,35.0]
[1738172210848,3.19863,3126.4,3126.0,35.09964077]
[1738172211154,3.19841,3126.6,3126.1,1.3647]
[1738172211530,3.19841,3126.6,3126.2,0.09947755]
[1738172211912,3.19847,3126.5,3126.2,0.09947755]
[1738172212112,6.39659,3126.7,3126.2,0.09947755]
[1738172212314,3.19827,3126.7,3126.2,0.09947755]
[1738172212509,3.19792,3127.1,3126.5,0.0075]
[1738172212714,3.19792,3127.1,3126.3,0.03948036]
[1738172212926,3.19808,3126.9,3126.6,0.09820733]
[1738172213124,3.19808,3126.9,3126.5,0.0075]
[1738172213365,3.19808,3126.9,3126.7,35.0]
[1738172213528,3.19815,3126.8,3126.7,35.0]
[1738172213953,3.19866,3126.4,3125.9,0.8242]
[1738172214137,3.19866,3126.4,3126.0,0.32]
[1738172214336,3.19841,3126.6,3126.1,35.0075]
[1738172214530,3.19841,3126.6,3126.1,38.20628]
[1738172214857,3.19852,3126.5,3126.1,35.0075]
[1738172215182,3.19859,3126.4,3126.1,35.0075]
[1738172215977,0.7876,3126.5,3125.7,3.19923]
[1738172216187,3.19866,3126.3,3126.2,0.32]
[1738172216541,3.19856,3126.4,3126.2,0.32]
[1738172216886,3.19866,3126.3,3126.2,0.32]
[1738172217248,3.19854,3126.5,3126.2,0.32]
[1738172217445,3.19842,3126.6,3126.2,0.32]
[1738172217446,3.19857,3126.4,3126.2,0.32]
[1738172217844,3.19857,3126.4,3126.3,35.0]
[1738172221443,3.19915,3125.9,3125.7,0.318]
[1738172221781,3.1989,3126.1,3125.8,35.0]
[1738172222084,3.1989,3126.1,3125.7,0.318]
[1738172222085,3.19902,3126.0,3125.7,0.318]
[1738172222497,3.19889,3126.1,3125.7,0.318]
[1738172222642,3.1988,3126.2,3125.8,0.09615972]
[1738172222841,3.1988,3126.2,3125.7,0.318]
[1738172223080,3.1988,3126.2,3125.8,0.09615972]
[1738172223286,0.7899,3125.9,3125.3,0.7508]
[1738172223494,0.7899,3125.9,3125.4,0.41948627]
[1738172223495,3.19948,3125.5,3125.4,0.41948627]
[1738172223986,3.19948,3125.5,3125.4,0.09648627]
[1738172224187,3.19948,3125.5,3125.0,0.7556]
[1738172224370,3.20002,3125.0,3124.7,0.7556]
[1738172224694,3.20029,3124.8,3124.5,2.533]
[1738172224840,3.2001,3124.9,3124.8,0.324]
[1738172225584,3.2001,3124.9,3124.7,0.23391373]
[1738172225585,3.2002,3124.8,3124.7,0.23391373]
[1738172225737,3.2002,3124.8,3124.7,0.55791373]
[1738172225942,3.2002,3124.8,3124.7,0.23391373]
[1738172226180,3.79746315,3124.8,3124.7,0.55691373]
[1738172226351,3.2002,3124.8,3124.7,0.55691373]
[1738172226754,3.20006,3125.0,3124.7,0.55691373]
[1738172227090,3.19978,3125.3,3124.8,0.0075]
[1738172227240,3.19978,3125.3,3124.8,0.03949853]
[1738172227746,3.19978,3125.3,3124.8,0.0075]
[1738172227950,3.2,3125.0,3124.8,0.0075]
[1738172228379,3.2,3125.0,3124.7,0.323]
[1738172228700,3.2002,3124.8,3124.7,0.323]
[1738172229356,6.40008,3125.0,3124.7,0.323]
[1738172229568,3.2,3125.0,3124.7,0.323]
[1738172229986,3.19985,3125.2,3124.8,0.0075]
[1738172230285,3.19857,3126.4,3125.2,3.19973]
[1738172230286,3.19919,3125.8,3125.2,3.19973]
[1738172230487,3.19898,3126.0,3125.5,0.0075]
[1738172231043,3.19878,3126.2,3125.7,0.0075]
[1738172231240,3.19887,3126.1,3125.7,0.0075]
[1738172231393,3.19878,3126.2,3125.7,0.0075]
[1738172231590,3.19878,3126.2,3125.8,0.0075]
[1738172231809,3.19878,3126.2,3125.7,3.19928]
[1738172231810,3.19894,3126.1,3125.6,0.015]
[1738172232007,6.39806,3126.0,3125.6,0.0075]
[1738172232206,3.199,3126.0,3125.5,0.565]
[1738172232424,0.7846,3126.4,3125.5,0.0075]
[1738172232620,3.19928,3125.8,3125.5,0.0075]
[1738172232826,3.19928,3125.7,3125.6,0.324]
[1738172233134,3.19953,3125.5,3125.1,0.8098]
[1738172233284,3.95398,3125.7,3125.6,0.323]
[1738172233485,4.669296,3125.7,3125.6,0.323]
[1738172234559,4.669296,3125.7,3125.4,0.323]
[1738172234560,3.19948,3125.5,3125.4,0.323]
[1738172236955,3.19948,3125.5,3125.4,0.41970089]
[1738172237341,3.19948,3125.5,3125.4,0.41770089]
[1738172237564,3.19948,3125.5,3125.4,0.321]
[1738172237943,3.19948,3125.5,3125.4,0.41770089]
[1738172238635,3.839366,3125.5,3125.4,0.321]
[1738172239231,3.19948,3125.5,3125.4,0.321]
[1738172239930,3.19948,3125.5,3125.4,0.41752406]
[1738172240372,6.19948,3125.5,3125.4,0.09652406]
[1738172240684,3.2004,3124.6,3124.5,0.319]
[1738172240845,3.20051,3124.5,3124.4,0.319]
[1738172241030,3.840601,3124.5,3124.4,0.319]
[1738172241232,3.20102,3124.0,3123.7,0.8313]
[1738172241432,3.20102,3124.0,3123.8,0.319]
[1738172241635,3.20036,3124.7,3124.1,0.0075]
[1738172241929,3.20029,3124.8,3124.1,0.0075]
[1738172241930,3.20042,3124.6,3124.2,0.09891135]
[1738172242380,3.20002,3125.0,3124.4,3.20803]
[1738172242680,3.20002,3125.0,3124.6,0.0075]
[1738172242983,3.19983,3125.2,3124.8,0.0075]
[1738172243134,0.8267,3125.6,3124.8,0.0075]
[1738172243333,0.38267,3125.5,3124.9,0.08825575]
[1738172243559,3.19997,3125.1,3124.6,0.0075]
[1738172243734,3.2,3125.0,3124.6,0.0075]
[1738172243933,3.2,3125.0,3124.7,0.08841911]
[1738172244135,3.19997,3125.1,3124.7,0.08841911]
[1738172244337,3.19971,3125.3,3124.9,0.7908]
[1738172244565,1.40992107,3125.8,3125.0,0.0075]
[1738172244895,3.19888,3126.1,3125.3,3.21461]
[1738172244896,3.1991,3125.9,3125.3,3.21461]
[1738172245106,3.19936,3125.7,3125.1,0.87844585]
[1738172245387,0.359719,3126.1,3125.1,0.87844585]
[1738172245388,3.19961,3125.4,3125.1,0.87844585]
[1738172245552,3.19976,3125.3,3125.1,0.87844585]
[1738172245754,6.39909,3125.5,3125.1,0.87844585]
[1738172246063,3.19953,3125.5,3125.1,0.7908]
[1738172246268,3.19979,3125.2,3125.1,0.7908]
[1738172246454,3.20015,3124.9,3124.5,0.8118]
[1738172246650,3.20015,3124.9,3124.6,0.317]
[1738172246860,3.2003,3124.7,3124.5,0.8118]
[1738172247068,3.2003,3124.7,3124.6,0.318]
[1738172247283,3.20015,3124.9,3124.6,0.318]
[1738172247880,3.8251,3125.4,3124.7,0.0075]
[1738172248183,0.7664491,3125.3,3124.7,3.20779]
[1738172248479,3.19962,3125.4,3124.7,3.20779]
[1738172248846,3.2001,3124.9,3124.8,0.08456291]
[1738172249293,3.1999,3125.1,3124.8,0.0075]
[1738172249795,3.1999,3125.1,3124.9,0.08458077]
[1738172250216,3.19973,3125.3,3125.0,0.0075]
[1738172250359,3.19982,3125.2,3125.0,0.09182502]
[1738172250889,3.19989,3125.1,3125.0,0.08432502]
[1738172251069,3.19989,3125.1,3125.0,0.40232502]
[1738172251399,3.19989,3125.1,3125.0,0.318]
[1738172251769,6.3995,3125.3,3125.0,0.40237477]
[1738172251973,3.19981,3125.2,3125.0,0.40237477]
[1738172252305,3.19989,3125.1,3125.0,0.40237477]
[1738172253706,3.19973,3125.3,3125.0,0.40237477]
[1738172254275,3.19983,3125.2,3125.0,0.40237477]
[1738172254772,3.19973,3125.3,3125.0,0.40237477]
[1738172254999,3.19953,3125.5,3125.0,0.40237477]
[1738172255000,3.19953,3125.5,3125.1,0.7627]
[1738172255202,3.19975,3125.3,3125.1,0.08429312]
[1738172255698,0.319953,3125.5,3125.1,0.08429312]
[1738172255897,3.19979,3125.2,3125.1,0.08429312]
[1738172256087,3.19979,3125.2,3125.1,0.39929312]
[1738172256336,3.19979,3125.2,3125.1,0.315]
[1738172256608,3.19979,3125.2,3125.1,0.39933452]
[1738172261514,3.19979,3125.2,3125.1,0.08433452]
[1738172261671,4.626638,3125.2,3125.1,0.08433452]
[1738172261877,3.19989,3125.1,3125.0,0.313]
[1738172263620,3.20024,3124.8,3124.4,0.0075]
[1738172263923,3.20024,3124.8,3124.5,0.311]
[1738172264103,3.2004,3124.6,3124.5,0.40046635]
[1738172264304,3.20024,3124.8,3124.5,0.40046635]
[1738172264509,3.20036,3124.7,3124.5,0.40046635]
[1738172264819,3.2004,3124.6,3124.5,0.08196635]
[1738172264991,3.2004,3124.6,3124.5,0.31]
[1738172265320,3.20062,3124.4,3123.9,0.8319]
[1738172265524,6.40131,3124.4,3124.1,0.0075]
[1738172265880,3.20099,3124.1,3123.8,2.534]
[1738172266121,3.20081,3124.2,3123.9,0.31]
[1738172266325,0.8008,3124.5,3123.8,2.534]
[1738172266492,3.20112,3123.9,3123.8,2.534]
[1738172267082,3.2013,3123.8,3123.6,0.311]
[1738172267426,3.2013,3123.8,3123.2,0.8008]
[1738172267427,3.20157,3123.5,3123.0,0.0075]
[1738172267626,0.8217,3123.6,3122.2,0.311]
[1738172267793,3.20191,3123.2,3122.3,3.9997]
[1738172268009,3.20191,3123.2,3122.3,0.797]
[1738172268216,3.20207,3123.0,3122.5,3.21005]
[1738172268402,3.20191,3123.2,3122.7,0.0075]
[1738172268403,3.20195,3123.1,3122.7,0.0075]
[1738172268782,3.20191,3123.2,3122.7,0.0075]
[1738172269022,3.20195,3123.1,3122.6,0.218462]
[1738172269222,4.00286,3123.0,3122.3,3.51375]
[1738172269422,3.20206,3123.0,3122.4,3.20263]
[1738172269592,3.20227,3122.8,3122.4,0.0075]
[1738172269794,3.20241,3122.7,3122.4,0.0075]
[1738172270099,3.20241,3122.7,3122.2,0.8248]
[1738172270100,3.20247,3122.6,3122.5,0.311]
[1738172271005,3.20266,3122.5,3122.2,0.8248]
[1738172271336,6.405,3122.6,3122.3,0.313]
[1738172271555,3.20258,3122.5,3122.3,0.313]
[1738172271771,3.20256,3122.5,3122.3,0.313]
[1738172272249,3.20258,3122.5,3122.3,0.313]
[1738172272455,3.20252,3122.6,3122.3,0.313]
[1738172273423,3.20258,3122.5,3122.3,0.313]
[1738172274050,6.40481,3122.7,3122.3,0.313]
[1738172274507,6.4048,3122.7,3122.3,0.313]
[1738172275359,3.20252,3122.6,3122.3,0.313]
[1738172275711,3.2022,3122.9,3122.3,0.313]
[1738172275911,3.20237,3122.7,3122.3,0.313]
[1738172276639,3.20247,3122.6,3122.3,0.313]
[1738172277737,6.40459,3122.8,3122.3,0.313]
[1738172277945,0.38287676,3122.9,3122.4,0.0075]
[1738172278146,3.20206,3123.0,3122.5,0.7769]
[1738172278346,3.20196,3123.1,3122.5,3.97938]
[1738172278554,3.0,3123.8,3122.7,0.015]
[1738172278555,0.63425352,3123.5,3122.7,0.015]
[1738172278760,3.20096,3124.1,3123.5,0.8287]
[1738172278993,3.20091,3124.2,3123.5,0.8287]
[1738172279148,3.20102,3124.0,3123.6,0.38957178]
[1738172279475,3.20133,3123.7,3123.6,0.38957178]
[1738172279675,3.521021,3124.1,3123.6,0.38957178]
[1738172279881,6.722031,3124.1,3123.6,0.311]
[1738172280032,3.20118,3123.9,3123.7,0.07867973]
[1738172280246,3.521338,3123.8,3123.7,0.07867973]
[1738172280442,0.63239561,3124.4,3123.7,0.38967973]
[1738172280761,0.63239561,3124.4,3123.8,4.04953695]
[1738172280960,3.20023,3124.8,3124.1,0.0075]
[1738172280961,3.2004,3124.7,3124.1,0.0075]
[1738172281162,3.19995,3125.1,3124.5,3.2005]
[1738172281499,0.8246,3125.6,3125.1,3.19988]
[1738172281659,4.02403,3125.6,3125.2,0.313]
[1738172281858,3.19949,3125.5,3125.2,0.39008107]
[1738172282202,3.19969,3125.3,3125.2,0.39008107]
[1738172282549,3.96369,3125.3,3125.2,0.313]
[1738172283750,3.19969,3125.3,3125.2,0.313]
[1738172283948,3.19969,3125.3,3125.2,0.38984483]
[1738172284173,3.19969,3125.3,3125.2,0.313]
[1738172284502,3.19969,3125.3,3125.2,0.38984483]
[1738172284503,0.6719129,3125.3,3125.2,0.38984483]
[1738172284792,3.19928,3125.7,3125.2,1.18924483]
[1738172284962,3.19928,3125.7,3125.3,0.312]
[1738172285172,3.1991,3125.9,3125.4,0.38868156]
[1738172285486,0.38298474,3125.8,3125.4,0.38868156]
[1738172285799,3.0,3126.4,3125.4,0.38868156]
[1738172285800,3.9726,3126.5,3125.8,3.19918]
[1738172286093,3.9726,3126.5,3125.9,35.0075]
[1738172286268,3.1985,3126.5,3125.9,35.08335144]
[1738172286800,3.1985,3126.5,3125.9,38.28236144]
[1738172287094,0.31985,3126.4,3126.0,0.316]
[1738172287393,3.19887,3126.1,3126.0,0.316]
[1738172287997,3.19866,3126.3,3126.0,0.316]
[1738172288348,0.31985,3126.4,3126.0,4.33557]
[1738172288563,6.3966,3126.7,3126.1,0.0075]
[1738172288796,3.19827,3126.7,3126.2,35.0]
[1738172290063,3.19836,3126.6,3126.2,35.0]
[1738172290281,3.19827,3126.7,3126.2,35.0]
[1738172290914,3.19827,3126.7,3126.3,0.0075]
[1738172291073,3.837904,3126.7,3126.3,0.0075]
[1738172291415,0.639634,3126.7,3126.3,0.0075]
[1738172291718,1.40244665,3127.2,3126.0,4.33556]
[1738172291719,3.19837,3126.6,3126.0,4.33556]
[1738172292062,3.19837,3126.6,3126.1,0.0075]
[1738172292509,7.60019665,3127.2,3126.1,0.0075]
[1738172292510,3.19799,3127.0,3126.1,0.015]
[1738172292723,3.19791,3127.1,3126.5,0.0075]
[1738172292930,3.95778,3127.2,3126.5,0.0075]
[1738172293207,3.95778,3127.2,3126.4,3.19856]
[1738172293208,3.19843,3126.6,3126.0,1.1366]
[1738172293413,6.39686,3126.6,3126.0,1.1366]
[1738172293611,3.19843,3126.6,3126.0,4.33554]
[1738172293764,3.19843,3126.6,3126.1,0.0075]
[1738172294014,3.518303,3126.5,3126.1,0.0075]
[1738172294440,3.19857,3126.4,3126.1,0.0075]
[1738172294628,3.19889,3126.1,3125.7,0.7676]
[1738172294822,1.146343,3126.5,3125.7,0.7676]
[1738172294823,3.1987,3126.3,3125.8,0.315]
[1738172295054,3.19889,3126.1,3125.7,0.7676]
[1738172295212,3.518779,3126.1,3125.8,0.315]
[1738172295413,3.518779,3126.1,3125.8,0.38752643]
[1738172295657,3.518779,3126.1,3125.8,0.07252643]
[1738172295658,3.19905,3126.0,3125.8,0.07252643]
[1738172295976,3.518779,3126.1,3125.9,0.314]
[1738172296460,0.319889,3126.1,3125.9,0.314]
[1738172296843,3.518779,3126.1,3125.9,0.314]
[1738172297016,0.3518779,3126.0,3125.9,0.314]
[1738172297564,0.3518779,3126.0,3125.9,0.38668594]
[1738172298070,3.5508479,3126.0,3125.9,0.38668594]
[1738172298654,3.5508479,3126.0,3125.9,0.07268594]
[1738172298843,3.5508479,3126.0,3125.9,0.38468594]
[1738172299016,3.5508479,3126.0,3125.9,0.312]
[1738172299214,3.5508479,3126.0,3125.9,0.3847206]
[1738172299413,0.3518779,3126.0,3125.9,0.3847206]
[1738172299821,0.3518779,3126.0,3125.9,35.3847206]